fUST/lending_fUST_20240918
["ID","MTS","AMOUNT","RATE_DAILY","PERIOD"]
[338425231,1726630242033,-500.0,0.00019178,2]
[338425232,1726630242043,-979.93,0.00019178,2]
[338425233,1726630242054,-502.92885781,0.00019178,2]
[338425234,1726630242065,-853.42,0.00019178,2]
[338425235,1726630242075,-897.72,0.00019178,2]
[338425236,1726630242086,-500.0,0.00019178,2]
[338425237,1726630242099,-500.0,0.00019178,2]
[338425238,1726630242110,-500.0,0.00019178,2]
[338425239,1726630242289,-1642.52,0.00019178,2]
[338425240,1726630242298,-500.0,0.00019178,2]
[338425241,1726630242308,-500.0,0.00019178,2]
[338425242,1726630242318,-500.0,0.00019178,2]
[338425243,1726630242329,-500.0,0.00019178,2]
[338425244,1726630242339,-500.0,0.00019178,2]
[338425245,1726630242349,-500.0,0.00019178,2]
[338425246,1726630242358,-1763.82,0.00019178,2]
[338425247,1726630242370,-2936.3,0.00019178,2]
[338425248,1726630242380,-500.0,0.00019178,2]
[338425249,1726630242391,-500.0,0.00019178,2]
[338425250,1726630242400,-500.0,0.00019178,2]
[338425251,1726630242411,-500.0,0.00019178,2]
[338425252,1726630242422,-500.0,0.00019178,2]
[338425253,1726630242432,-1270.0,0.00019178,2]
[338425254,1726630242443,-500.0,0.00019178,2]
[338425255,1726630242454,-500.0,0.00019178,2]
[338425256,1726630242466,-500.0,0.00019178,2]
[338425257,1726630242478,-1793.86,0.00019178,2]
[338425258,1726630242487,-500.0,0.00019178,2]
[338425259,1726630242498,-500.0,0.00019178,2]
[338425260,1726630242511,-501.11914821,0.00019178,2]
[338425261,1726630242522,-500.0,0.00019178,2]
[338425262,1726630242533,-959.49,0.00019178,2]
[338425263,1726630242544,-500.0,0.00019178,2]
[338425264,1726630242554,-500.0,0.00019178,2]
[338425265,1726630242566,-1109.16,0.00019178,2]
[338425266,1726630242575,-1384.73,0.00019178,2]
[338425267,1726630242584,-1284.89,0.00019178,2]
[338425268,1726630242594,-500.0,0.00019178,2]
[338425269,1726630242603,-500.0,0.00019178,2]
[338425270,1726630242613,-763.72,0.00019178,2]
[338425271,1726630242622,-623.08793146,0.00019178,2]
[338425272,1726630242631,-297.48112711,0.00019178,2]
[338425273,1726630242640,-500.0,0.00019178,2]
[338425274,1726630242650,-1129.29,0.00019178,2]
[338425275,1726630242659,-557.97,0.00019178,2]
[338425276,1726630242667,-1163.05,0.00019178,2]
[338425277,1726630242677,-652.92,0.00019178,2]
[338425278,1726630242690,-500.0,0.00019178,2]
[338425279,1726630242700,-500.0,0.00019178,2]
[338425280,1726630242709,-500.0,0.00019178,2]
[338425281,1726630242719,-500.0,0.00019178,2]
[338425282,1726630242731,-1668.89,0.00019178,2]
[338425283,1726630242742,-1668.89,0.00019178,2]
[338425284,1726630242754,-1668.89,0.00019178,2]
[338425285,1726630242764,-1668.89,0.00019178,2]
[338425286,1726630242773,-1668.89,0.00019178,2]
[338425287,1726630242783,-1668.89,0.00019178,2]
[338425288,1726630242791,-1668.89,0.00019178,2]
[338425289,1726630242801,-1668.89,0.00019178,2]
[338425290,1726630242809,-500.0,0.00019178,2]
[338425291,1726630242818,-237.29,0.00019178,2]
[338425292,1726630242828,-1668.89,0.00019178,2]
[338425293,1726630242837,-1668.89,0.00019178,2]
[338425294,1726630242846,-500.0,0.00019178,2]
[338425295,1726630242856,-1668.89,0.00019178,2]
[338425296,1726630242865,-2514.17,0.00019178,2]
[338425297,1726630242874,-1668.89,0.00019178,2]
[338425298,1726630242883,-507.54994266,0.00019178,2]
[338425299,1726630242893,-1668.89,0.00019178,2]
[338425300,1726630242902,-1668.89,0.00019178,2]
[338425301,1726630242911,-1668.89,0.00019178,2]
[338425302,1726630242920,-1668.89,0.00019178,2]
[338425303,1726630242929,-1668.89,0.00019178,2]
[338425304,1726630242938,-1668.89,0.00019178,2]
[338425305,1726630242948,-1007.27,0.00019178,2]
[338425306,1726630242957,-1668.89,0.00019178,2]
[338425307,1726630242966,-500.0,0.00019178,2]
[338425308,1726630242975,-1668.89,0.00019178,2]
[338425309,1726630242985,-1668.89,0.00019178,2]
[338425310,1726630242994,-1668.89,0.00019178,2]
[338425311,1726630243003,-1668.89,0.00019178,2]
[338425312,1726630243012,-1669.07536857,0.00019178,2]
[338425313,1726630243021,-798.78,0.00019178,2]
[338425314,1726630243031,-530.16,0.00019178,2]
[338425315,1726630243039,-605.58,0.00019178,2]
[338425316,1726630243049,-500.0,0.00019178,2]
[338425317,1726630243058,-501.19218989,0.00019178,2]
[338425318,1726630243068,-500.0,0.00019178,2]
[338425319,1726630243077,-500.0,0.00019178,2]
[338425320,1726630243086,-2058.79,0.00019178,2]
[338425321,1726630243095,-500.0,0.00019178,2]
[338425322,1726630243104,-1315.31,0.00019178,2]
[338425323,1726630243113,-500.0,0.00019178,2]
[338425324,1726630243122,-539.46,0.00019178,2]
[338425325,1726630243131,-1284.58,0.00019178,2]
[338425326,1726630243140,-500.0,0.00019178,2]
[338425327,1726630243150,-500.0,0.00019178,2]
[338425328,1726630243159,-500.0,0.00019178,2]
[338425329,1726630243168,-500.0,0.00019178,2]
[338425330,1726630243178,-500.0,0.00019178,2]
[338425331,1726630243188,-500.0,0.00019178,2]
[338425332,1726630243197,-500.0,0.00019178,2]
[338425333,1726630243206,-500.0,0.00019178,2]
[338425334,1726630243215,-501.04744739,0.00019178,2]
[338425335,1726630243223,-500.0,0.00019178,2]
[338425336,1726630243232,-500.0,0.00019178,2]
[338425337,1726630243242,-1558.13,0.00019178,2]
[338425338,1726630243251,-947.11,0.00019178,2]
[338425339,1726630243261,-502.42661494,0.00019178,2]
[338425340,1726630243270,-833.83,0.00019178,2]
[338425341,1726630243279,-899.03,0.00019178,2]
[338425342,1726630243288,-1117.76,0.00019178,2]
[338425343,1726630243298,-500.0,0.00019178,2]
[338425344,1726630243308,-626.87,0.00019178,2]
[338425345,1726630243317,-500.0,0.00019178,2]
[338425346,1726630243326,-500.0,0.00019178,2]
[338425347,1726630243335,-500.0,0.00019178,2]
[338425348,1726630243346,-500.0,0.00019178,2]
[338425349,1726630243357,-500.0,0.00019178,2]
[338425350,1726630243366,-1488.66,0.00019178,2]
[338425351,1726630243376,-500.0,0.00019178,2]
[338425352,1726630243386,-500.0,0.00019178,2]
[338425353,1726630243395,-514.86769866,0.00019178,2]
[338425354,1726630243404,-500.0,0.00019178,2]
[338425355,1726630243413,-575.09232438,0.00019178,2]
[338425356,1726630243424,-500.0,0.00019178,2]
[338425357,1726630243434,-500.0,0.00019178,2]
[338425358,1726630243444,-500.0,0.00019178,2]
[338425359,1726630243454,-500.0,0.00019178,2]
[338425360,1726630243466,-500.0,0.00019178,2]
[338425361,1726630243477,-500.0,0.00019178,2]
[338425362,1726630243487,-500.0,0.00019178,2]
[338425363,1726630243498,-2347.61,0.00019178,2]
[338425364,1726630243509,-500.0,0.00019178,2]
[338425365,1726630243519,-523.09,0.00019178,2]
[338425366,1726630243529,-500.0,0.00019178,2]
[338425367,1726630243540,-500.30277408,0.00019178,2]
[338425368,1726630243550,-500.0,0.00019178,2]
[338425369,1726630243560,-539.56,0.00019178,2]
[338425370,1726630243570,-500.0,0.00019178,2]
[338425371,1726630243581,-500.0,0.00019178,2]
[338425372,1726630243592,-500.0,0.00019178,2]
[338425373,1726630243602,-689.25,0.00019178,2]
[338425374,1726630243614,-500.0,0.00019178,2]
[338425375,1726630243624,-768.59,0.00019178,2]
[338425376,1726630243635,-1411.41,0.00019178,2]
[338425377,1726630243646,-500.0,0.00019178,2]
[338425378,1726630243657,-500.0,0.00019178,2]
[338425379,1726630243667,-542.19,0.00019178,2]
[338425380,1726630243678,-502.66,0.00019178,2]
[338425381,1726630243689,-776.3,0.00019178,2]
[338425382,1726630243698,-1034.03,0.00019178,2]
[338425383,1726630243707,-500.0,0.00019178,2]
[338425384,1726630243717,-500.0,0.00019178,2]
[338425385,1726630243727,-500.0,0.00019178,2]
[338425386,1726630243738,-945.72,0.00019178,2]
[338425387,1726630243747,-829.86,0.00019178,2]
[338425388,1726630243757,-500.0,0.00019178,2]
[338425389,1726630243768,-500.0,0.00019178,2]
[338425390,1726630243778,-500.0,0.00019178,2]
[338425391,1726630243788,-1281.97,0.00019178,2]
[338425392,1726630243799,-500.0,0.00019178,2]
[338425393,1726630243809,-500.0,0.00019178,2]
[338425394,1726630243819,-646.33865991,0.00019178,2]
[338425395,1726630243831,-500.0,0.00019178,2]
[338425396,1726630243842,-1005.8,0.00019178,2]
[338425397,1726630243853,-500.0,0.00019178,2]
[338425398,1726630243864,-1500.08,0.00019178,2]
[338425399,1726630243873,-3154.26,0.00019178,2]
[338425400,1726630243883,-502.63285672,0.00019178,2]
[338425401,1726630243892,-500.0,0.00019178,2]
[338425402,1726630243902,-532.31977263,0.00019178,2]
[338425403,1726630243911,-500.0,0.00019178,2]
[338425404,1726630243921,-571.31,0.00019178,2]
[338425405,1726630243931,-633.03,0.00019178,2]
[338425407,1726630243941,-679.69,0.00019178,2]
[338425409,1726630243950,-1831.04,0.00019178,2]
[338425410,1726630243960,-5342.0,0.00019178,2]
[338425411,1726630243969,-500.0,0.00019178,2]
[338425412,1726630243979,-500.0,0.00019178,2]
[338425413,1726630243989,-727.12,0.00019178,2]
[338425414,1726630243998,-820.5,0.00019178,2]
[338425415,1726630244007,-500.0,0.00019178,2]
[338425416,1726630244017,-500.0,0.00019178,2]
[338425417,1726630244026,-1299.64,0.00019178,2]
[338425418,1726630244036,-500.0,0.00019178,2]
[338425419,1726630244046,-500.0,0.00019178,2]
[338425420,1726630244058,-500.0,0.00019178,2]
[338425421,1726630244067,-1865.73,0.00019178,2]
[338425422,1726630244077,-500.0,0.00019178,2]
[338425423,1726630244087,-500.0,0.00019178,2]
[338425424,1726630244096,-500.0,0.00019178,2]
[338425425,1726630244108,-830.58,0.00019178,2]
[338425426,1726630244117,-824.82,0.00019178,2]
[338425427,1726630244127,-538.05000947,0.00019178,2]
[338425428,1726630244139,-525.37,0.00019178,2]
[338425430,1726630244149,-1283.31,0.00019178,2]
[338425431,1726630244159,-819.21,0.00019178,2]
[338425432,1726630244169,-151.0,0.00019178,2]
[338425433,1726630244179,-500.0,0.00019178,2]
[338425434,1726630244192,-794.58,0.00019178,2]
[338425435,1726630244202,-500.0,0.00019178,2]
[338425436,1726630244211,-935.99,0.00019178,2]
[338425437,1726630244222,-500.0,0.00019178,2]
[338425438,1726630244231,-2098.19,0.00019178,2]
[338425439,1726630244240,-500.0,0.00019178,2]
[338425440,1726630244250,-1033.3,0.00019178,2]
[338425441,1726630244259,-500.0,0.00019178,2]
[338425442,1726630244269,-500.0,0.00019178,2]
[338425443,1726630244279,-500.0,0.00019178,2]
[338425444,1726630244288,-500.0,0.00019178,2]
[338425445,1726630244298,-500.0,0.00019178,2]
[338425446,1726630244308,-500.0,0.00019178,2]
[338425447,1726630244318,-3452.64,0.00019178,2]
[338425448,1726630244327,-500.0,0.00019178,2]
[338425449,1726630244337,-2125.11,0.00019178,2]
[338425450,1726630244347,-1212.29,0.00019178,2]
[338425451,1726630244358,-547.67,0.00019178,2]
[338425452,1726630244368,-500.0,0.00019178,2]
[338425453,1726630244377,-1213.89,0.00019178,2]
[338425454,1726630244387,-1213.89,0.00019178,2]
[338425455,1726630244398,-1208.82,0.00019178,2]
[338425456,1726630244407,-1213.89,0.00019178,2]
[338425457,1726630244417,-1213.89,0.00019178,2]
[338425458,1726630244426,-1213.89,0.00019178,2]
[338425459,1726630244436,-1213.89,0.00019178,2]
[338425460,1726630244446,-1213.89,0.00019178,2]
[338425461,1726630244455,-1213.89,0.00019178,2]
[338425462,1726630244464,-500.0,0.00019178,2]
[338425463,1726630244474,-1213.89,0.00019178,2]
[338425464,1726630244484,-1213.89,0.00019178,2]
[338425465,1726630244494,-873.33,0.00019178,2]
[338425466,1726630244504,-1213.89,0.00019178,2]
[338425467,1726630244515,-1213.89,0.00019178,2]
[338425468,1726630244525,-1213.89,0.00019178,2]
[338425469,1726630244534,-1213.89,0.00019178,2]
[338425470,1726630244544,-151.0,0.00019178,2]
[338425471,1726630244554,-1213.89,0.00019178,2]
[338425472,1726630244563,-1213.89,0.00019178,2]
[338425473,1726630244573,-1213.89,0.00019178,2]
[338425474,1726630244583,-1213.89,0.00019178,2]
[338425475,1726630244592,-1213.89,0.00019178,2]
[338425476,1726630244602,-500.0,0.00019178,2]
[338425477,1726630244612,-1136.09,0.00019178,2]
[338425478,1726630244622,-500.0,0.00019178,2]
[338425479,1726630244632,-1213.89,0.00019178,2]
[338425480,1726630244642,-1052.11,0.00019178,2]
[338425481,1726630244652,-500.0,0.00019178,2]
[338425482,1726630244667,-1213.89,0.00019178,2]
[338425483,1726630244677,-1213.89,0.00019178,2]
[338425484,1726630244686,-500.0,0.00019178,2]
[338425485,1726630244848,-1213.89,0.00019178,2]
[338425486,1726630244860,-1213.92239255,0.00019178,2]
[338425487,1726630244870,-500.0,0.00019178,2]
[338425488,1726630244880,-500.0,0.00019178,2]
[338425489,1726630244890,-500.0,0.00019178,2]
[338425490,1726630244903,-500.0,0.00019178,2]
[338425491,1726630244913,-500.0,0.00019178,2]
[338425492,1726630244924,-250.0,0.00019178,2]
[338425493,1726630244935,-500.0,0.00019178,2]
[338425494,1726630244946,-391.99930936,0.00019178,2]
[338425495,1726630244956,-599.04,0.00019178,2]
[338425496,1726630244966,-1377.76,0.00019178,2]
[338425497,1726630244978,-500.0,0.00019178,2]
[338425498,1726630244989,-500.0,0.00019178,2]
[338425499,1726630244999,-500.0,0.00019178,2]
[338425500,1726630245010,-500.0,0.00019178,2]
[338425501,1726630245021,-500.0,0.00019178,2]
[338425502,1726630245033,-641.86,0.00019178,2]
[338425503,1726630245042,-2449.99,0.00019178,2]
[338425504,1726630245051,-500.0,0.00019178,2]
[338425505,1726630245061,-500.0,0.00019178,2]
[338425506,1726630245070,-1622.38,0.00019178,2]
[338425507,1726630245079,-500.0,0.00019178,2]
[338425508,1726630245088,-500.0,0.00019178,2]
[338425509,1726630245098,-500.0,0.00019178,2]
[338425510,1726630245108,-500.0,0.00019178,2]
[338425511,1726630245117,-500.0,0.00019178,2]
[338425512,1726630245126,-500.0,0.00019178,2]
[338425513,1726630245136,-502.87,0.00019178,2]
[338425514,1726630245145,-500.0,0.00019178,2]
[338425515,1726630245154,-1212.06,0.00019178,2]
[338425516,1726630245164,-1341.55,0.00019178,2]
[338425517,1726630245174,-969.3,0.00019178,2]
[338425518,1726630245189,-500.0,0.00019178,2]
[338425519,1726630245204,-557.66,0.00019178,2]
[338425520,1726630245214,-500.0,0.00019178,2]
[338425521,1726630245223,-500.0,0.00019178,2]
[338425522,1726630245233,-500.0,0.00019178,2]
[338425523,1726630245242,-597.34,0.00019178,2]
[338425524,1726630245251,-500.0,0.00019178,2]
[338425525,1726630245261,-1416.91,0.00019178,2]
[338425526,1726630245270,-500.0,0.00019178,2]
[338425527,1726630245280,-1504.99,0.00019178,2]
[338425528,1726630245289,-500.0,0.00019178,2]
[338425529,1726630245298,-152.436312,0.00019178,2]
[338425530,1726630245308,-500.0,0.00019178,2]
[338425531,1726630245318,-500.0,0.00019178,2]
[338425532,1726630245328,-500.0,0.00019178,2]
[338425533,1726630245337,-500.0,0.00019178,2]
[338425534,1726630245347,-162.2085388,0.00019178,2]
[338425535,1726630245358,-500.0,0.00019178,2]
[338425536,1726630245367,-710.95,0.00019178,2]
[338425537,1726630245378,-1717.02,0.00019178,2]
[338425538,1726630245388,-500.0,0.00019178,2]
[338425539,1726630245398,-500.0,0.00019178,2]
[338425540,1726630245408,-1717.02,0.00019178,2]
[338425541,1726630245418,-1717.02,0.00019178,2]
[338425542,1726630245438,-500.0,0.00019178,2]
[338425543,1726630245448,-1717.02,0.00019178,2]
[338425544,1726630245457,-1717.02,0.00019178,2]
[338425545,1726630245466,-2427.23,0.00019178,2]
[338425546,1726630245476,-1717.02,0.00019178,2]
[338425547,1726630245485,-691.15,0.00019178,2]
[338425548,1726630245495,-1717.02,0.00019178,2]
[338425549,1726630245504,-1717.02,0.00019178,2]
[338425550,1726630245515,-1717.02,0.00019178,2]
[338425551,1726630245524,-1717.02,0.00019178,2]
[338425552,1726630245534,-836.6,0.00019178,2]
[338425553,1726630245543,-1717.02,0.00019178,2]
[338425554,1726630245554,-1717.02,0.00019178,2]
[338425555,1726630245564,-1717.02,0.00019178,2]
[338425556,1726630245574,-668.7,0.00019178,2]
[338425557,1726630245584,-1717.02,0.00019178,2]
[338425558,1726630245594,-1717.02,0.00019178,2]
[338425559,1726630245603,-500.0,0.00019178,2]
[338425560,1726630245615,-1717.02,0.00019178,2]
[338425561,1726630245624,-1717.02,0.00019178,2]
[338425562,1726630245635,-1717.02,0.00019178,2]
[338425563,1726630245645,-500.0,0.00019178,2]
[338425564,1726630245655,-1717.02,0.00019178,2]
[338425565,1726630245665,-1717.02,0.00019178,2]
[338425566,1726630245682,-1717.02,0.00019178,2]
[338425567,1726630245695,-1717.02,0.00019178,2]
[338425568,1726630245704,-500.0,0.00019178,2]
[338425569,1726630245713,-1717.02,0.00019178,2]
[338425570,1726630245722,-1717.10661819,0.00019178,2]
[338425571,1726630245731,-1274.97,0.00019178,2]
[338425572,1726630245741,-1355.88,0.00019178,2]
[338425573,1726630245750,-624.02,0.00019178,2]
[338425574,1726630245759,-1331.78,0.00019178,2]
[338425575,1726630245768,-500.0,0.00019178,2]
[338425576,1726630245778,-539.08,0.00019178,2]
[338425577,1726630245788,-151.0,0.00019178,2]
[338425578,1726630245799,-821.49,0.00019178,2]
[338425579,1726630245809,-1028.15,0.00019178,2]
[338425580,1726630245819,-2285.56,0.00019178,2]
[338425581,1726630245830,-500.0,0.00019178,2]
[338425582,1726630245840,-154.742121,0.00019178,2]
[338425583,1726630245851,-500.0,0.00019178,2]
[338425584,1726630245860,-500.0,0.00019178,2]
[338425585,1726630245870,-559.69,0.00019178,2]
[338425586,1726630245880,-500.0,0.00019178,2]
[338425587,1726630245889,-504.52225556,0.00019178,2]
[338425588,1726630245898,-500.0,0.00019178,2]
[338425589,1726630245908,-500.0,0.00019178,2]
[338425590,1726630245919,-1374.18,0.00019178,2]
[338425591,1726630245933,-151.0,0.00019178,2]
[338425592,1726630245943,-1251.57,0.00019178,2]
[338425593,1726630245953,-500.0,0.00019178,2]
[338425594,1726630245963,-601.12331123,0.00019178,2]
[338425595,1726630245973,-500.0,0.00019178,2]
[338425596,1726630245982,-500.0,0.00019178,2]
[338425597,1726630245992,-500.0,0.00019178,2]
[338425598,1726630246001,-500.0,0.00019178,2]
[338425599,1726630246011,-500.0,0.00019178,2]
[338425600,1726630246020,-1731.29,0.00019178,2]
[338425601,1726630246030,-500.0,0.00019178,2]
[338425602,1726630246039,-500.0,0.00019178,2]
[338425603,1726630246048,-562.44,0.00019178,2]
[338425604,1726630246059,-634.8,0.00019178,2]
[338425605,1726630246068,-500.0,0.00019178,2]
[338425606,1726630246078,-500.0,0.00019178,2]
[338425607,1726630246088,-500.0,0.00019178,2]
[338425608,1726630246100,-1098.12,0.00019178,2]
[338425609,1726630246111,-764.72,0.00019178,2]
[338425610,1726630246122,-500.0,0.00019178,2]
[338425611,1726630246133,-975.31,0.00019178,2]
[338425612,1726630246144,-500.0,0.00019178,2]
[338425613,1726630246155,-630.61229126,0.00019178,2]
[338425614,1726630246165,-1581.9,0.00019178,2]
[338425615,1726630246177,-552.07,0.00019178,2]
[338425616,1726630246189,-1164.16,0.00019178,2]
[338425617,1726630246201,-500.0,0.00019178,2]
[338425618,1726630246212,-500.0,0.00019178,2]
[338425619,1726630246222,-500.0,0.00019178,2]
[338425620,1726630246232,-500.0,0.00019178,2]
[338425621,1726630246243,-97.08144206,0.00019178,2]
[338425637,1726630246995,-402.91855794,0.00019178,2]
[338425638,1726630247006,-413.82164976,0.00019178,2]
[338425639,1726630247016,-500.0,0.00019178,2]
[338425641,1726630247026,-500.0,0.00019178,2]
[338425642,1726630247037,-500.0,0.00019178,2]
[338425643,1726630247047,-500.0,0.00019178,2]
[338425644,1726630247058,-432.64981515,0.00019178,2]
[338425645,1726630247069,-845.86,0.00019178,2]
[338425646,1726630247079,-500.0,0.00019178,2]
[338425647,1726630247088,-500.0,0.00019178,2]
[338425648,1726630247099,-507.62540879,0.00019178,2]
[338425649,1726630247111,-500.0,0.00019178,2]
[338425650,1726630247122,-500.0,0.00019178,2]
[338425651,1726630247133,-1236.78,0.00019178,2]
[338425652,1726630247143,-1217.92,0.00019178,2]
[338425653,1726630247155,-500.0,0.00019178,2]
[338425654,1726630247166,-671.53,0.00019178,2]
[338425655,1726630247175,-500.0,0.00019178,2]
[338425656,1726630247196,-500.0,0.00019178,2]
[338425657,1726630247208,-634.01,0.00019178,2]
[338425658,1726630247219,-2711.97,0.00019178,2]
[338425659,1726630247229,-735.42,0.00019178,2]
[338425660,1726630247240,-500.0,0.00019178,2]
[338425661,1726630247252,-500.0,0.00019178,2]
[338425662,1726630247263,-500.0,0.00019178,2]
[338425663,1726630247274,-500.0,0.00019178,2]
[338425664,1726630247286,-500.0,0.00019178,2]
[338425665,1726630247296,-500.0,0.00019178,2]
[338425666,1726630247309,-511.98,0.00019178,2]
[338425667,1726630247321,-500.0,0.00019178,2]
[338425668,1726630247331,-661.06,0.00019178,2]
[338425669,1726630247342,-500.0,0.00019178,2]
[338425670,1726630247355,-500.0,0.00019178,2]
[338425671,1726630247366,-387.64963909,0.00019178,2]
[338425672,1726630247375,-618.11,0.00019178,2]
[338425673,1726630247386,-500.0,0.00019178,2]
[338425674,1726630247396,-2182.03,0.00019178,2]
[338425675,1726630247405,-500.0,0.00019178,2]
[338425676,1726630247416,-501.27253316,0.00019178,2]
[338425677,1726630247432,-152.61899933,0.00019178,2]
[338425678,1726630247443,-1207.78,0.00019178,2]
[338425679,1726630247454,-500.0,0.00019178,2]
[338425680,1726630247463,-500.0,0.00019178,2]
[338425681,1726630247474,-500.0,0.00019178,2]
[338425682,1726630247486,-500.0,0.00019178,2]
[338425683,1726630247497,-500.0,0.00019178,2]
[338425684,1726630247510,-500.0,0.00019178,2]
[338425685,1726630247522,-1137.27,0.00019178,2]
[338425686,1726630247533,-857.84,0.00019178,2]
[338425687,1726630247543,-154.304865,0.00019178,2]
[338425688,1726630247553,-500.0,0.00019178,2]
[338425689,1726630247564,-1741.34,0.00019178,2]
[338425690,1726630247575,-808.92,0.00019178,2]
[338425691,1726630247585,-500.0,0.00019178,2]
[338425692,1726630247597,-762.07,0.00019178,2]
[338425693,1726630247606,-500.0,0.00019178,2]
[338425694,1726630247618,-500.0,0.00019178,2]
[338425695,1726630247627,-809.37,0.00019178,2]
[338425696,1726630247641,-500.0,0.00019178,2]
[338425697,1726630247652,-500.0,0.00019178,2]
[338425698,1726630247662,-509.80127082,0.00019178,2]
[338425699,1726630247672,-681.42,0.00019178,2]
[338425700,1726630247683,-500.0,0.00019178,2]
[338425701,1726630247694,-2133.09,0.00019178,2]
[338425702,1726630247706,-151.0,0.00019178,2]
[338425703,1726630247716,-151.0,0.00019178,2]
[338425704,1726630247727,-2403.05,0.00019178,2]
[338425705,1726630247739,-511.71130499,0.00019178,2]
[338425706,1726630247750,-812.63,0.00019178,2]
[338425707,1726630247759,-500.0,0.00019178,2]
[338425708,1726630247769,-1096.04,0.00019178,2]
[338425709,1726630247779,-598.1667228,0.00019178,2]
[338425710,1726630247788,-1357.9,0.00019178,2]
[338425711,1726630247798,-724.74,0.00019178,2]
[338425712,1726630247808,-768.01,0.00019178,2]
[338425713,1726630247818,-1304.79,0.00019178,2]
[338425714,1726630247827,-834.29,0.00019178,2]
[338425715,1726630247837,-701.85,0.00019178,2]
[338425716,1726630247847,-736.11,0.00019178,2]
[338425717,1726630247857,-611.85,0.00019178,2]
[338425718,1726630247867,-151.0,0.00019178,2]
[338425719,1726630247876,-500.0,0.00019178,2]
[338425720,1726630247887,-151.0,0.00019178,2]
[338425721,1726630247896,-500.0,0.00019178,2]
[338425722,1726630247908,-500.0,0.00019178,2]
[338425723,1726630247920,-500.0,0.00019178,2]
[338425724,1726630247932,-151.00820477,0.00019178,2]
[338425725,1726630247943,-500.0,0.00019178,2]
[338425726,1726630247954,-151.0,0.00019178,2]
[338425727,1726630247965,-151.0,0.00019178,2]
[338425728,1726630247976,-501.86079998,0.00019178,2]
[338425729,1726630247987,-500.0,0.00019178,2]
[338425730,1726630247998,-500.0,0.00019178,2]
[338425731,1726630248008,-2751.61,0.00019178,2]
[338425732,1726630248017,-2695.44,0.00019178,2]
[338425733,1726630248027,-500.0,0.00019178,2]
[338425734,1726630248038,-151.0,0.00019178,2]
[338425735,1726630248047,-152.209474,0.00019178,2]
[338425736,1726630248058,-500.0,0.00019178,2]
[338425737,1726630248068,-500.0,0.00019178,2]
[338425738,1726630248077,-687.61,0.00019178,2]
[338425739,1726630248087,-945.56,0.00019178,2]
[338425740,1726630248096,-500.0,0.00019178,2]
[338425741,1726630248106,-500.0,0.00019178,2]
[338425742,1726630248116,-500.0,0.00019178,2]
[338425743,1726630248126,-500.0,0.00019178,2]
[338425744,1726630248136,-400.27338501,0.00019178,2]
[338425745,1726630248147,-500.0,0.00019178,2]
[338425746,1726630248157,-500.0,0.00019178,2]
[338425747,1726630248167,-2656.74,0.00019178,2]
[338425748,1726630248179,-168.6695,0.00019178,2]
[338425749,1726630248197,-168.6695,0.00019178,2]